lending/lending_fUSD_20241229
["ID","MTS","AMOUNT","RATE_DAILY","PERIOD"]
[347125493,1735512652517,-500.0,0.0001382,2]
[347125494,1735512652527,-244.26133223,0.0001382,2]
[347125495,1735512652537,-506.3,0.0001382,2]
[347125496,1735512652547,-500.0,0.0001382,2]
[347125497,1735512652559,-572.27,0.0001382,2]
[347125498,1735512652569,-535.52,0.0001382,2]
[347125499,1735512652578,-867.0,0.0001382,2]
[347125500,1735512652586,-519.68,0.0001382,2]
[347125501,1735512652595,-504.99,0.0001382,2]
[347125502,1735512652604,-2595.17,0.0001382,2]
[347125503,1735512652613,-500.0,0.0001382,2]
[347125504,1735512652622,-512.02,0.0001382,2]
[347125505,1735512652631,-500.0,0.0001382,2]
[347125506,1735512652640,-500.0,0.0001382,2]
[347125507,1735512652649,-751.35,0.0001382,2]
[347125508,1735512652659,-1441.68,0.0001382,2]
[347125509,1735512652668,-1112.26,0.0001382,2]
[347125510,1735512652677,-500.0,0.0001382,2]
[347125511,1735512652686,-500.0,0.0001382,2]
[347125512,1735512652695,-866.62,0.0001382,2]
[347125513,1735512652708,-500.0,0.0001382,2]
[347125514,1735512652729,-681.75,0.0001382,2]
[347125515,1735512652746,-649.24,0.0001382,2]
[347125516,1735512652765,-645.7,0.0001382,2]
[347125517,1735512652782,-869.68,0.0001382,2]
[347125518,1735512652798,-1784.83,0.0001382,2]
[347125519,1735512652816,-2876.58,0.0001382,2]
[347125520,1735512652835,-500.0,0.0001382,2]
[347125521,1735512652854,-500.0,0.0001382,2]
[347125522,1735512652872,-500.0,0.0001382,2]
[347125523,1735512652890,-720.92,0.0001382,2]
[347125524,1735512652905,-4718.19,0.0001382,2]
[347125525,1735512652923,-1054.35,0.0001382,2]
[347125526,1735512652937,-614.0,0.0001382,2]
[347125527,1735512652954,-1623.64,0.0001382,2]
[347125528,1735512652968,-1534.62,0.0001382,2]
[347125529,1735512652983,-693.39,0.0001382,2]
[347125530,1735512652998,-653.61,0.0001382,2]
[347125531,1735512653013,-500.0,0.0001382,2]
[347125532,1735512653027,-2984.28,0.0001382,2]
[347125533,1735512653042,-500.0,0.0001382,2]
[347125534,1735512653057,-602.83,0.0001382,2]
[347125535,1735512653072,-1236.17,0.0001382,2]
[347125536,1735512653087,-721.93,0.0001382,2]
[347125537,1735512653102,-7500.0,0.0001382,2]
[347125538,1735512653116,-2186.53,0.0001382,2]
[347125539,1735512653131,-790.8,0.0001382,2]
[347125540,1735512653146,-500.0,0.0001382,2]
[347125541,1735512653160,-916.71,0.0001382,2]
[347125542,1735512653174,-500.0,0.0001382,2]
[347125543,1735512653189,-1092.16,0.0001382,2]
[347125544,1735512653207,-500.0,0.0001382,2]
[347125545,1735512653221,-565.6,0.0001382,2]
[347125546,1735512653236,-855.89,0.0001382,2]
[347125547,1735512653251,-500.0,0.0001382,2]
[347125548,1735512653269,-1208.22,0.0001382,2]
[347125549,1735512653283,-782.54,0.0001382,2]
[347125550,1735512653298,-1679.25,0.0001382,2]
[347125551,1735512653314,-573.78,0.0001382,2]
[347125552,1735512653330,-500.0,0.0001382,2]
[347125553,1735512653348,-500.0,0.0001382,2]
[347125554,1735512653363,-598.16,0.0001382,2]
[347125555,1735512653379,-994.58,0.0001382,2]
[347125556,1735512653394,-1750.51,0.0001382,2]
[347125557,1735512653409,-584.61,0.0001382,2]
[347125558,1735512653424,-500.0,0.0001382,2]
[347125559,1735512653440,-1039.92,0.0001382,2]
[347125560,1735512653454,-1141.92,0.0001382,2]
[347125561,1735512653469,-701.15,0.0001382,2]
[347125562,1735512653485,-500.0,0.0001382,2]
[347125563,1735512653501,-7166.23,0.0001382,2]
[347125564,1735512653516,-500.0,0.00013821,2]
[347125565,1735512653531,-500.0,0.00013821,2]
[347125566,1735512653546,-500.0,0.00013821,2]
[347125567,1735512653562,-500.0,0.00013821,2]
[347125568,1735512653578,-500.0,0.00013821,2]
[347125569,1735512653593,-560.12,0.00013821,2]
[347125570,1735512653609,-500.0,0.00013821,2]
[347125571,1735512653624,-500.0,0.00013821,2]
[347125572,1735512653640,-518.98,0.00013821,2]
[347125573,1735512653654,-500.0,0.00013821,2]
[347125574,1735512653670,-500.0,0.00013821,2]
[347125575,1735512653684,-500.0,0.00013821,2]
[347125576,1735512653701,-500.0,0.00013821,2]
[347125577,1735512653717,-590.57,0.00013821,2]
[347125578,1735512653732,-500.0,0.00013821,2]
[347125579,1735512653748,-516.04,0.00013821,2]
[347125580,1735512653763,-500.0,0.00013821,2]
[347125581,1735512653778,-500.0,0.00013821,2]
[347125582,1735512653793,-500.0,0.00013821,2]
[347125583,1735512653808,-510.15,0.00013821,2]
[347125584,1735512653823,-500.0,0.00013821,2]
[347125585,1735512653839,-637.65,0.00013821,2]
[347125586,1735512653854,-500.0,0.00013821,2]
[347125587,1735512653871,-500.0,0.00013821,2]
[347125588,1735512653888,-524.36704045,0.00013821,2]
[347125589,1735512654062,-500.0,0.00013821,2]
[347125590,1735512654076,-557.36,0.00013821,2]
[347125591,1735512654086,-500.0,0.00013821,2]
[347125592,1735512654096,-500.0,0.00013821,2]
[347125593,1735512654106,-500.0,0.00013821,2]
[347125594,1735512654116,-500.0,0.00013821,2]
[347125595,1735512654125,-610.97,0.00013821,2]
[347125596,1735512654135,-500.0,0.00013821,2]
[347125597,1735512654144,-500.0,0.00013821,2]
[347125598,1735512654155,-500.0,0.00013821,2]
[347125599,1735512654165,-500.0,0.00013821,2]
[347125600,1735512654175,-500.0,0.00013821,2]
[347125601,1735512654184,-500.0,0.00013821,2]
[347125602,1735512654194,-598.84,0.00013821,2]
[347125603,1735512654203,-500.0,0.00013821,2]
[347125604,1735512654213,-885.65,0.00013821,2]
[347125605,1735512654223,-576.7,0.00013821,2]
[347125606,1735512654233,-531.12,0.00013821,2]
[347125607,1735512654242,-925.56,0.00013821,2]
[347125608,1735512654252,-500.0,0.00013821,2]
[347125609,1735512654264,-500.0,0.00013821,2]
[347125610,1735512654274,-500.0,0.00013821,2]
[347125611,1735512654284,-519.42,0.00013821,2]
[347125612,1735512654294,-739.11,0.00013821,2]
[347125613,1735512654304,-735.49,0.00013821,2]
[347125614,1735512654314,-798.57,0.00013821,2]
[347125615,1735512654323,-500.0,0.00013821,2]
[347125616,1735512654335,-648.48,0.00013821,2]
[347125617,1735512654344,-500.0,0.00013821,2]
[347125618,1735512654353,-809.97,0.00013821,2]
[347125619,1735512654363,-528.84,0.00013821,2]
[347125620,1735512654372,-500.0,0.00013821,2]
[347125621,1735512654381,-500.0,0.00013821,2]
[347125622,1735512654389,-500.0,0.00013821,2]
[347125623,1735512654399,-500.0,0.00013821,2]
[347125624,1735512654408,-500.0,0.00013821,2]
[347125625,1735512654417,-524.35,0.00013821,2]
[347125626,1735512654426,-522.01,0.00013821,2]
[347125627,1735512654436,-500.0,0.00013821,2]
[347125628,1735512654445,-500.0,0.00013821,2]
[347125629,1735512654454,-500.0,0.00013821,2]
[347125630,1735512654463,-500.0,0.00013821,2]
[347125631,1735512654472,-532.45,0.00013821,2]
[347125632,1735512654481,-500.0,0.00013821,2]
[347125633,1735512654490,-698.92,0.00013821,2]
[347125634,1735512654500,-500.0,0.00013821,2]
[347125635,1735512654513,-500.0,0.00013821,2]
[347125636,1735512654523,-541.06,0.00013821,2]
[347125637,1735512654533,-500.0,0.00013821,2]
[347125638,1735512654542,-500.0,0.00013821,2]
[347125639,1735512654552,-500.0,0.00013821,2]
[347125640,1735512654561,-500.0,0.00013821,2]
[347125641,1735512654571,-500.0,0.00013821,2]
[347125642,1735512654581,-517.75,0.00013821,2]
[347125643,1735512654590,-500.0,0.00013821,2]
[347125644,1735512654599,-904.52,0.00013821,2]
[347125645,1735512654609,-628.11,0.00013821,2]
[347125646,1735512654618,-500.0,0.00013821,2]
[347125647,1735512654628,-500.0,0.00013821,2]
[347125648,1735512654637,-500.0,0.00013821,2]
[347125649,1735512654646,-532.12,0.00013821,2]
[347125650,1735512654656,-500.0,0.00013821,2]
[347125651,1735512654665,-588.86,0.00013821,2]
[347125652,1735512654674,-500.0,0.00013821,2]
[347125653,1735512654684,-549.66,0.00013821,2]
[347125654,1735512654693,-500.0,0.00013821,2]
[347125655,1735512654703,-500.0,0.00013821,2]
[347125656,1735512654713,-586.0,0.00013821,2]
[347125657,1735512654723,-625.88,0.00013821,2]
[347125658,1735512654733,-500.0,0.00013821,2]
[347125659,1735512654742,-500.0,0.00013821,2]
[347125660,1735512654752,-500.0,0.00013821,2]
[347125661,1735512654761,-1194.27,0.00013821,2]
[347125662,1735512654770,-555.77,0.00013821,2]
[347125663,1735512654779,-500.0,0.00013821,2]
[347125664,1735512654788,-569.94,0.00013821,2]
[347125665,1735512654797,-500.0,0.00013821,2]
[347125666,1735512654806,-876.79,0.00013821,2]
[347125667,1735512654816,-500.0,0.00013821,2]
[347125668,1735512654825,-508.57,0.00013821,2]
[347125669,1735512654834,-500.0,0.00013821,2]
[347125670,1735512654843,-500.0,0.00013821,2]
[347125671,1735512654852,-500.0,0.00013821,2]
[347125672,1735512654861,-517.89,0.00013821,2]
[347125673,1735512654870,-1285.64,0.00013821,2]
[347125674,1735512654879,-500.0,0.00013821,2]
[347125675,1735512654888,-555.82,0.00013821,2]
[347125676,1735512654897,-500.0,0.00013821,2]
[347125677,1735512654907,-701.93,0.00013821,2]
[347125678,1735512654916,-500.0,0.00013821,2]
[347125679,1735512654925,-500.0,0.00013821,2]
[347125680,1735512654934,-687.63,0.00013821,2]
[347125681,1735512654943,-1144.31,0.00013821,2]
[347125682,1735512654952,-500.0,0.00013821,2]
[347125683,1735512654962,-642.7651156,0.00013821,2]
[347125684,1735512654971,-709.97,0.00013821,2]
[347125685,1735512654980,-637.95,0.00013821,2]
[347125686,1735512654990,-500.0,0.00013821,2]
[347125687,1735512655000,-764.91,0.00013821,2]
[347125688,1735512655009,-562.61,0.00013821,2]
[347125689,1735512655019,-693.6,0.00013821,2]
[347125690,1735512655029,-500.0,0.00013821,2]
[347125691,1735512655038,-500.0,0.00013821,2]
[347125692,1735512655048,-703.11,0.00013821,2]
[347125693,1735512655057,-814.93,0.00013821,2]
[347125694,1735512655067,-500.0,0.00013821,2]
[347125695,1735512655077,-810.41,0.00013821,2]
[347125696,1735512655087,-1217.7,0.00013821,2]
[347125697,1735512655096,-649.9,0.00013821,2]
[347125698,1735512655106,-633.84,0.00013821,2]
[347125699,1735512655115,-500.0,0.00013821,2]
[347125700,1735512655125,-599.98,0.00013821,2]
[347125701,1735512655135,-500.0,0.00013821,2]
[347125702,1735512655145,-557.36,0.00013821,2]
[347125703,1735512655154,-500.0,0.00013821,2]
[347125704,1735512655163,-639.65,0.00013821,2]
[347125705,1735512655173,-657.03,0.00013821,2]
[347125706,1735512655182,-500.0,0.00013821,2]
[347125707,1735512655192,-500.0,0.00013821,2]
[347125708,1735512655201,-500.0,0.00013821,2]
[347125709,1735512655211,-834.39,0.00013821,2]
[347125710,1735512655220,-500.0,0.00013821,2]
[347125711,1735512655230,-671.99,0.00013821,2]
[347125712,1735512655240,-500.0,0.00013821,2]
[347125713,1735512655249,-500.0,0.00013821,2]
[347125714,1735512655260,-500.0,0.00013821,2]
[347125715,1735512655271,-740.04,0.00013821,2]
[347125716,1735512655280,-1194.96,0.00013821,2]
[347125717,1735512655289,-1069.09,0.00013821,2]
[347125718,1735512655299,-500.0,0.00013821,2]
[347125719,1735512655310,-370.13,0.00013821,2]
[347125720,1735512655319,-500.0,0.00013821,2]
[347125721,1735512655328,-500.0,0.00013821,2]
[347125722,1735512655338,-568.93,0.00013821,2]
[347125723,1735512655347,-500.0,0.00013821,2]
[347125724,1735512655356,-650.86,0.00013821,2]
[347125725,1735512655366,-593.28,0.00013821,2]
[347125726,1735512655375,-774.94,0.00013821,2]
[347125727,1735512655384,-593.04,0.00013821,2]
[347125728,1735512655393,-500.0,0.00013821,2]
[347125729,1735512655403,-500.0,0.00013821,2]
[347125730,1735512655412,-500.0,0.00013821,2]
[347125731,1735512655422,-500.0,0.00013821,2]
[347125732,1735512655431,-595.68,0.00013821,2]
[347125733,1735512655441,-736.43,0.00013821,2]
[347125734,1735512655450,-500.0,0.00013821,2]
[347125735,1735512655459,-716.25,0.00013821,2]
[347125736,1735512655468,-500.0,0.00013821,2]
[347125737,1735512655477,-500.0,0.00013821,2]
[347125738,1735512655486,-1190.68,0.00013821,2]
[347125739,1735512655496,-500.0,0.00013821,2]
[347125740,1735512655506,-3138.83,0.00013821,2]
[347125741,1735512655515,-981.31,0.00013821,2]
[347125742,1735512655525,-500.0,0.00013821,2]
[347125743,1735512655535,-1395.02,0.00013821,2]
[347125744,1735512655546,-500.0,0.00013821,2]
[347125745,1735512655557,-1950.04,0.00013821,2]
[347125746,1735512655567,-2327.97,0.00013821,2]
[347125747,1735512655577,-1261.89,0.00013821,2]
[347125748,1735512655587,-500.0,0.00013821,2]
[347125749,1735512655596,-500.0,0.00013821,2]
[347125750,1735512655606,-8391.93,0.00013821,2]
[347125751,1735512655615,-500.0,0.00013821,2]
[347125752,1735512655625,-787.93,0.00013821,2]
[347125753,1735512655635,-13486.76,0.00013821,2]
[347125754,1735512655646,-500.0,0.00013821,2]
[347125755,1735512655655,-500.0,0.00013821,2]
[347125756,1735512655665,-500.0,0.00013821,2]
[347125757,1735512655674,-4898.19,0.00013821,2]
[347125758,1735512655684,-853.89,0.00013821,2]
[347125759,1735512655693,-564.7,0.00013821,2]
[347125760,1735512655703,-546.94,0.00013821,2]
[347125761,1735512655713,-500.0,0.00013855,2]
[347125762,1735512655723,-918.24,0.00013855,2]
[347125763,1735512655733,-500.0,0.00013855,2]
[347125764,1735512655742,-4892.15,0.00013855,2]
[347125765,1735512655752,-1249.36,0.00013855,2]
[347125766,1735512655762,-500.0,0.00013855,2]
[347125767,1735512655772,-845.04,0.00013855,2]
[347125768,1735512655782,-1779.32,0.00013855,2]
[347125769,1735512655792,-500.0,0.00013855,2]
[347125770,1735512655801,-500.0,0.00013855,2]
[347125771,1735512655810,-992.81,0.00013855,2]
[347125772,1735512655820,-500.0,0.00013855,2]
[347125773,1735512655830,-500.0,0.00013855,2]
[347125774,1735512655839,-166.92,0.00013881,2]
[347125775,1735512655849,-625.01736213,0.0001396,2]
[347125776,1735512655858,-500.0,0.0001396,2]
[347125777,1735512655868,-500.0,0.0001396,2]
[347125778,1735512655877,-174.14533046,0.00013993,2]
[347125779,1735512655887,-165.1905704,0.00013994,2]
[347125780,1735512655898,-20000.0,0.00014,2]
[347125781,1735512655908,-500.0,0.00014,2]
[347125782,1735512655917,-500.0,0.00014035,2]
[347125783,1735512655927,-993.73,0.00014091,2]
[347125784,1735512655937,-500.0,0.00014093,2]
[347125785,1735512655947,-500.0,0.00014093,2]
[347125786,1735512655956,-516.3,0.00014093,2]
[347125787,1735512655966,-183.98279544,0.00014093,2]
[347125788,1735512655975,-500.0,0.00014093,2]
[347125789,1735512655985,-500.0,0.00014093,2]
[347125790,1735512655993,-500.0,0.00014093,2]
[347125791,1735512656003,-500.0,0.00014093,2]
[347125792,1735512656013,-536.26,0.00014093,2]
[347125793,1735512656022,-397.18,0.00014093,2]
[347125794,1735512656031,-500.0,0.00014093,2]
[347125795,1735512656041,-500.0,0.00014093,2]
[347125796,1735512656051,-500.0,0.00014093,2]
[347125797,1735512656061,-500.0,0.00014093,2]
[347125798,1735512656070,-548.87,0.00014093,2]
[347125799,1735512656199,-276.27632754,0.00014093,2]
[347125800,1735512656215,-500.0,0.00014093,2]
[347125801,1735512656225,-500.0,0.00014093,2]
[347125802,1735512656234,-1300.27,0.00014093,2]
[347125803,1735512656243,-2297.64,0.00014093,2]
[347125804,1735512656253,-500.0,0.00014093,2]
[347125805,1735512656267,-15551.2,0.00014093,2]
[347125806,1735512656278,-543.54656742,0.00014093,2]
[347125807,1735512656288,-500.0,0.00014093,2]
[347125808,1735512656299,-500.0,0.00014093,2]
[347125809,1735512656309,-500.0,0.00014093,2]
[347125810,1735512656318,-500.0,0.00014093,2]
[347125811,1735512656329,-677.18,0.00014093,2]
[347125812,1735512656339,-500.0,0.00014093,2]
[347125813,1735512656351,-500.0,0.00014093,2]
[347125814,1735512656360,-500.0,0.00014093,2]
[347125815,1735512656370,-938.53,0.00014093,2]
[347125816,1735512656379,-2773.74,0.00014093,2]
[347125817,1735512656388,-500.0,0.00014093,2]
[347125818,1735512656398,-500.0,0.00014093,2]
[347125819,1735512656408,-534.89,0.00014093,2]
[347125820,1735512656417,-529.14,0.00014093,2]
[347125821,1735512656427,-549.27,0.00014093,2]
[347125822,1735512656436,-500.0,0.00014093,2]
[347125823,1735512656445,-500.0,0.00014093,2]
[347125824,1735512656455,-500.0,0.00014093,2]
[347125825,1735512656464,-500.0,0.00014093,2]
[347125826,1735512656473,-5366.51,0.00014093,2]
[347125827,1735512656483,-500.0,0.00014093,2]
[347125828,1735512656492,-500.0,0.00014093,2]
[347125829,1735512656502,-500.0,0.00014093,2]
[347125830,1735512656511,-1210.25,0.00014093,2]
[347125831,1735512656521,-500.0,0.00014093,2]
[347125832,1735512656531,-500.0,0.00014093,2]
[347125833,1735512656541,-500.0,0.00014093,2]
[347125834,1735512656551,-528.76,0.00014093,2]
[347125835,1735512656560,-500.0,0.00014093,2]
[347125836,1735512656569,-1732.79,0.00014093,2]
[347125837,1735512656579,-604.19,0.00014093,2]
[347125838,1735512656588,-500.0,0.00014093,2]
[347125839,1735512656597,-500.0,0.00014093,2]
[347125840,1735512656607,-1481.65,0.00014093,2]
[347125841,1735512656617,-588.06,0.00014093,2]
[347125842,1735512656626,-500.0,0.00014093,2]
[347125843,1735512656636,-500.0,0.00014093,2]
[347125844,1735512656645,-709.85,0.00014093,2]
[347125845,1735512656654,-500.0,0.00014093,2]
[347125846,1735512656663,-1078.57,0.00014093,2]
[347125847,1735512656673,-500.0,0.00014093,2]
[347125848,1735512656682,-509.04,0.00014093,2]
[347125849,1735512656693,-500.0,0.00014093,2]
[347125850,1735512656703,-500.0,0.00014094,2]
[347125851,1735512656712,-500.0,0.00014094,2]
[347125852,1735512656722,-543.63,0.00014094,2]
[347125853,1735512656732,-500.0,0.00014094,2]
[347125854,1735512656741,-500.0,0.00014094,2]
[347125855,1735512656751,-500.0,0.00014094,2]
[347125856,1735512656760,-669.74,0.00014094,2]
[347125857,1735512656769,-500.0,0.00014094,2]
[347125858,1735512656779,-536.31,0.00014094,2]
[347125859,1735512656788,-668.56,0.00014094,2]
[347125860,1735512656797,-667.58,0.00014094,2]
[347125861,1735512656807,-500.0,0.00014094,2]
[347125862,1735512656816,-500.0,0.00014094,2]
[347125863,1735512656825,-500.0,0.00014094,2]
[347125864,1735512656834,-500.0,0.00014094,2]
[347125865,1735512656844,-567.13,0.00014094,2]
[347125866,1735512656853,-500.0,0.00014094,2]
[347125867,1735512656862,-500.0,0.00014094,2]
[347125868,1735512656871,-667.88,0.00014094,2]
[347125869,1735512656881,-790.26,0.00014094,2]
[347125870,1735512656890,-500.0,0.00014094,2]
[347125871,1735512656899,-751.75,0.00014094,2]
[347125872,1735512656908,-726.93,0.00014094,2]
[347125873,1735512656917,-500.0,0.00014094,2]
[347125874,1735512656927,-500.0,0.00014094,2]
[347125875,1735512656936,-500.0,0.00014094,2]
[347125876,1735512656945,-500.0,0.00014094,2]
[347125877,1735512656955,-337.62,0.00014094,2]
[347125878,1735512656964,-500.0,0.00014094,2]
[347125879,1735512656973,-500.0,0.00014094,2]
[347125880,1735512656983,-786.17,0.00014094,2]
[347125881,1735512656992,-500.0,0.00014094,2]
[347125882,1735512657002,-507.32,0.00014094,2]
[347125883,1735512657012,-534.04,0.00014094,2]
[347125884,1735512657021,-500.0,0.00014094,2]
[347125885,1735512657030,-514.64,0.00014094,2]
[347125886,1735512657040,-500.0,0.00014094,2]
[347125887,1735512657049,-958.79,0.00014094,2]
[347125888,1735512657058,-781.36,0.00014094,2]
[347125889,1735512657068,-500.0,0.00014094,2]
[347125890,1735512657078,-689.52,0.00014094,2]
[347125891,1735512657087,-500.0,0.00014094,2]
[347125892,1735512657097,-839.1,0.00014094,2]
[347125893,1735512657107,-500.0,0.00014094,2]
[347125894,1735512657116,-500.0,0.00014094,2]
[347125895,1735512657126,-649.3,0.00014094,2]
[347125896,1735512657135,-500.0,0.00014094,2]
[347125897,1735512657145,-1621.79,0.00014094,2]
[347125898,1735512657154,-500.0,0.00014094,2]
[347125899,1735512657163,-506.3,0.00014094,2]
[347125900,1735512657172,-500.0,0.00014094,2]
[347125901,1735512657182,-535.52,0.00014094,2]
[347125902,1735512657192,-867.0,0.00014094,2]
[347125903,1735512657201,-519.68,0.00014094,2]
[347125904,1735512657211,-504.99,0.00014094,2]
[347125905,1735512657220,-2595.17,0.00014094,2]
[347125906,1735512657230,-500.0,0.00014094,2]
[347125907,1735512657239,-512.02,0.00014094,2]
[347125908,1735512657248,-500.0,0.00014094,2]
[347125909,1735512657260,-500.0,0.00014094,2]
[347125910,1735512657270,-751.35,0.00014094,2]
[347125911,1735512657279,-1441.68,0.00014094,2]
[347125912,1735512657288,-1112.26,0.00014094,2]
[347125913,1735512657299,-500.0,0.00014094,2]
[347125914,1735512657308,-500.0,0.00014094,2]
[347125915,1735512657317,-866.62,0.00014094,2]
[347125916,1735512657327,-500.0,0.00014094,2]
[347125917,1735512657336,-681.75,0.00014094,2]
[347125918,1735512657346,-649.24,0.00014094,2]
[347125919,1735512657355,-645.7,0.00014094,2]
[347125920,1735512657365,-869.68,0.00014094,2]
[347125921,1735512657374,-1784.83,0.00014094,2]
[347125922,1735512657383,-2876.58,0.00014094,2]
[347125923,1735512657392,-500.0,0.00014094,2]
[347125924,1735512657402,-500.0,0.00014094,2]
[347125925,1735512657411,-500.0,0.00014094,2]
[347125926,1735512657420,-720.92,0.00014094,2]
[347125927,1735512657430,-4718.19,0.00014094,2]
[347125928,1735512657440,-1054.35,0.00014094,2]
[347125929,1735512657449,-614.0,0.00014094,2]
[347125930,1735512657459,-1623.64,0.00014094,2]
[347125931,1735512657469,-1534.62,0.00014094,2]
[347125932,1735512657478,-693.39,0.00014094,2]
[347125933,1735512657488,-653.61,0.00014094,2]
[347125934,1735512657497,-500.0,0.00014094,2]
[347125935,1735512657507,-2984.28,0.00014094,2]
[347125936,1735512657516,-500.0,0.00014094,2]
[347125937,1735512657526,-602.83,0.00014094,2]
[347125938,1735512657535,-1236.17,0.00014094,2]
[347125939,1735512657545,-721.93,0.00014094,2]
[347125940,1735512657554,-2186.53,0.00014094,2]
[347125941,1735512657563,-790.8,0.00014094,2]
[347125942,1735512657572,-500.0,0.00014094,2]
[347125943,1735512657582,-916.71,0.00014094,2]
[347125944,1735512657591,-500.0,0.00014094,2]
[347125945,1735512657601,-1092.16,0.00014094,2]
[347125946,1735512657611,-500.0,0.00014094,2]
[347125947,1735512657621,-565.6,0.00014094,2]
[347125948,1735512657630,-855.89,0.00014094,2]
[347125949,1735512657640,-1260.76,0.00014094,2]
[347125950,1735512657650,-500.0,0.00014094,2]
[347125951,1735512657659,-782.54,0.00014094,2]
[347125952,1735512657668,-1679.25,0.00014094,2]
[347125953,1735512657678,-573.78,0.00014094,2]
[347125954,1735512657688,-500.0,0.00014094,2]
[347125955,1735512657697,-500.0,0.00014094,2]
[347125956,1735512657707,-598.16,0.00014094,2]
[347125957,1735512657717,-994.58,0.00014094,2]
[347125958,1735512657726,-1750.51,0.00014094,2]
[347125959,1735512657736,-584.61,0.00014094,2]
[347125960,1735512657746,-500.0,0.00014094,2]
[347125961,1735512657755,-1039.92,0.00014094,2]
[347125962,1735512657764,-1141.92,0.00014094,2]
[347125963,1735512657774,-701.15,0.00014094,2]
[347125964,1735512657783,-500.0,0.00014094,2]
[347125965,1735512657795,-500.0,0.00014095,2]
[347125966,1735512657804,-500.0,0.00014095,2]
[347125967,1735512657814,-500.0,0.00014095,2]
[347125968,1735512657824,-500.0,0.00014095,2]
[347125969,1735512657834,-500.0,0.00014095,2]
[347125970,1735512657843,-560.12,0.00014095,2]
[347125971,1735512657852,-500.0,0.00014095,2]
[347125972,1735512657862,-500.0,0.00014095,2]
[347125973,1735512657871,-518.98,0.00014095,2]
[347125974,1735512657880,-500.0,0.00014095,2]
[347125975,1735512657890,-500.0,0.00014095,2]
[347125976,1735512657901,-500.0,0.00014095,2]
[347125977,1735512657910,-500.0,0.00014095,2]
[347125978,1735512657920,-590.57,0.00014095,2]
[347125979,1735512657929,-500.0,0.00014095,2]
[347125980,1735512657938,-516.04,0.00014095,2]
[347125981,1735512657947,-500.0,0.00014095,2]
[347125982,1735512657956,-500.0,0.00014095,2]
[347125983,1735512657965,-500.0,0.00014095,2]
[347125984,1735512657975,-510.15,0.00014095,2]
[347125985,1735512657984,-500.0,0.00014095,2]
[347125986,1735512657993,-637.65,0.00014095,2]
[347125987,1735512658002,-500.0,0.00014095,2]
[347125988,1735512658011,-500.0,0.00014095,2]
[347125989,1735512658020,-500.0,0.00014095,2]
[347125990,1735512658029,-557.36,0.00014095,2]
[347125991,1735512658038,-500.0,0.00014095,2]
[347125992,1735512658048,-500.0,0.00014095,2]